Cogmind - Beta 13 *** ADVENTURER MODE // 2024.05.08 @ 11:55:28 Player: Gallgagger Result: Self-destructed Performance ------------- Evolutions (1) 500 Regions Visited (3) 600 Robots Destroyed (50) 250 Value Destroyed (1077) 1077 Prototype IDs (3) 60 Alien Tech Used (0) 0 Bonus (30) 30 TOTAL SCORE: 2517 Bonus ------- High Alert Combat Kills 30 Cogmind --------- Core Integrity 350/400 Matter 250/300 Energy 305/305 System Corruption 0% Temperature Cool (0) Movement Rolling (105) Ox1 Location -9/Materials Parts ------- > --- POWER (2) -------- Light Ion Engine Heavy Ion Engine > --- PROPULSION (2) --- Wheel Compact Wheel > --- UTILITY (3) ------ Large Storage Unit Heavy Armor Plating > --- WEAPON (2) ------- High-powered Shotgun High-powered Shotgun > --- INVENTORY (15) --- Wheel Signal Interpreter Heavy Armor Plating Heavy Armor Plating Recalibrator Minigun Minigun High-powered Shotgun High-powered Shotgun Assault Cannon Assault Cannon Assault Cannon Rocket Launcher Peak State ------------ > --- POWER ------------ Light Ion Engine Heavy Ion Engine > --- PROPULSION ------- Compact Wheel Compact Wheel > --- UTILITY ---------- Large Storage Unit Heavy Armor Plating > --- WEAPON ----------- High-powered Shotgun Assault Cannon > --- INVENTORY -------- Improved Heat Sink Signal Interpreter Heavy Armor Plating Minigun Minigun Minigun Minigun High-powered Shotgun High-powered Shotgun Assault Cannon Assault Cannon Assault Cannon Grenade Launcher Rocket Launcher [Rating: 23] Favorites ----------- Power Light Nuclear Core Engine Light Ion Engine Power Core Light Nuclear Core Propulsion Compact Wheel Wheel Compact Wheel Utility Large Storage Unit Device ECM Suite Storage Large Storage Unit Protection Insulated Plating Weapon Light Assault Rifle Ballistic Gun Light Assault Rifle Ballistic Cannon Assault Cannon Launcher Rocket Launcher Build | -11 -10 -10 -9 ------- Run | Yrd Mat Min Mat Slots Evolved 2 | . . . 2 Power 1 | . . . 1 Propulsion . | . . . . Utility 1 | . . . 1 Weapon . | . . . . Parts Attached 28 | 6 4 . 18 Power 7 | 1 2 . 4 Engine 3 | 1 . . 2 Core 4 | . 2 . 2 Reactor . | . . . . Propulsion 4 | 2 . . 2 Treads . | . . . . Leg . | . . . . Wheel 4 | 2 . . 2 Hover . | . . . . Flight . | . . . . Utility 5 | 1 2 . 2 Device 1 | . 1 . . Storage 2 | 1 1 . . Processor . | . . . . Hackware . | . . . . Protection 2 | . . . 2 Artifact . | . . . . Weapon 12 | 2 . . 10 Energy Gun . | . . . . Energy Cannon . | . . . . Ballistic Gun 10 | 2 . . 8 Ballistic Cannon 1 | . . . 1 Launcher 1 | . . . 1 Special Weapon . | . . . . Impact Weapon . | . . . . Slashing Weapon . | . . . . Piercing Weapon . | . . . . Special Melee Weapon . | . . . . Unidentified Prototypes 1 | . . . 1 Parts Lost 2 | . . . 2 Power 2 | . . . 2 Propulsion . | . . . . Utility . | . . . . Weapon . | . . . . Highest Loss Streak 1 | . . . 1 To Critical Strikes . | . . . . Average Slot Usage (%) 94 | . 97 100 88 Engine 6 | . 4 . 13 Core 8 | . 9 14 4 Wheel 25 | . 28 28 22 Device 10 | . 11 14 5 Storage 12 | . 14 14 11 Protection 4 | . . . 10 Ballistic Gun 24 | . 28 28 20 Naked Turns . | . . . . Heaviest Build 54 | 10 29 29 54 Greatest Support 32 | 32 32 32 32 Greatest Overweight (x) 1 | . . . 1 Average Overweight (x) . | . . . . Largest Inventory Capacity 15 | 8 15 15 15 Average Capacity 13 | 7 10 15 15 Most Carried 15 | . 6 7 15 Average Carried 7 | . 3 6 11 Final Capacity 15 | 8 15 15 15 Final Carried 15 | . 6 7 15 Class Distribution -------------------- 100% | Mutant Dominant Class ---------------- Mutant | -10/Materials Mutant | -10/Mines Mutant | -9/Materials Resources | -11 -10 -10 -9 ----------- Run | Yrd Mat Min Mat Matter Collected 929 | 185 197 28 519 Remotely . | . . . . Salvage Created 1673 | . 524 89 1060 Parts 109 | . 26 8 75 Haulers Intercepted 3 | . 1 . 2 Recyclers Shooed 1 | . 1 . . Parts Field Recycled . | . . . . Retrieved Matter . | . . . . Parts Self-Destructed . | . . . . Prevented . | . . . . Kills | -11 -10 -10 -9 ------- Run | Yrd Mat Min Mat Combat Hostiles Destroyed 34 | . 7 6 21 Guns 34 | . 7 6 21 Classes Destroyed 11 | . 4 1 6 Worker 1 | . . . 1 Tunneler 2 | . . . 2 Hauler 3 | . 1 . 2 Recycler 4 | . 2 . 2 Mechanic 1 | . . . 1 Operator 1 | . . . 1 Watcher 4 | . 1 . 3 Swarmer 14 | . . 6 8 Grunt 14 | . 7 . 7 Brawler 1 | . . . 1 Sentry 5 | . . . 5 Best Kill Streak 6 | . 4 3 6 Combat Bots Only 5 | . 3 3 5 Max Kills in Single Turn 3 | . 1 1 3 Gunslinging 1 | . . . 1 Exploded . | . . . . Melee . | . . . . Uniques/NPCs Destroyed . | . . . . Combat | -11 -10 -10 -9 -------- Run | Yrd Mat Min Mat Hostile Shots Fired 105 | . 36 12 57 Missed 26 | . 8 5 13 Damage Taken 787 | . 313 49 425 Core 159 | . 80 29 50 Absorbed by Shields . | . . . . Ignored by Resistances 235 | . 93 14 128 Core Remaining (%) 78 | 100 . 56 . Volleys Fired 106 | . 46 9 51 Largest 2 | . 2 2 2 Hottest 69 | . 40 40 69 Shots Fired 209 | . 92 18 99 Gun 206 | . 92 18 96 Cannon 2 | . . . 2 Launcher 1 | . . . 1 Special . | . . . . Kinetic 208 | . 92 18 98 Thermal . | . . . . Explosive 1 | . . . 1 Electromagnetic . | . . . . Robot Hit Streak 24 | . 24 4 12 Robot Miss Streak 3 | . 3 2 3 Penetration Max . | . . . . Secondary Targets 6 | . 1 . 5 Max Gunslinging Chain 1 | . 1 . 1 Shots Hit Robots 165 | . 77 12 76 Core Hits 87 | . 34 8 45 Critical Kills 2 | . . . 2 Critical Parts Destroyed . | . . . . Critical Strikes 2 | . . . 2 Destroy 2 | . . . 2 Melee Attacks . | . . . . Impact . | . . . . Slashing . | . . . . Piercing . | . . . . Sneak Attacks . | . . . . Combat Hostiles . | . . . . Follow-up Attacks . | . . . . Damage Inflicted 2007 | . 597 113 1297 Guns 1980 | . 597 113 1270 Cannons 27 | . . . 27 Explosions . | . . . . Melee . | . . . . Ramming . | . . . . Kinetic 2007 | . 597 113 1297 Thermal . | . . . . Explosive . | . . . . Electromagnetic . | . . . . Impact . | . . . . Slashing . | . . . . Piercing . | . . . . Highest Corruption . | . . . . Average Corruption . | . . . . Corruption Purged . | . . . . Corruption Blocked . | . . . . Overload Shots . | . . . . Overflow Damage . | . . . . Projectiles . | . . . . Explosions . | . . . . Melee . | . . . . Knockbacks . | . . . . Impact . | . . . . Kinetic . | . . . . Secondary . | . . . . Self-Inflicted Damage 20 | . . . 20 Shots 1 | . . . 1 Rammed . | . . . . Targets Rammed . | . . . . Kicked . | . . . . Crushed . | . . . . Highest Temperature 117 | . 37 8 117 Average Temperature 26 | . 11 3 34 Received Heat Transfer 390 | . 201 . 189 Siege Activations . | . . . . Robots Corrupted . | . . . . Combat Hostiles . | . . . . Parts Fried . | . . . . Impact Corruptions . | . . . . Robots Melted . | . . . . Combat Hostiles . | . . . . Parts Melted . | . . . . Heat Transferred . | . . . . Parts Sabotaged . | . . . . Parts Stolen . | . . . . Parts Stripped . | . . . . Power Chain Reactions . | . . . . Alert | -11 -10 -10 -9 ------- Run | Yrd Mat Min Mat Peak Influence 483 | . 210 165 483 Initial 25 | . . 25 . Average 154 | . 65 81 275 Maximum Alert Level 2 | . 1 . 2 Low Security (%) 72 | 100 98 100 32 Level 1 18 | . 1 . 44 Level 2 9 | . . . 23 Level 3 . | . . . . Level 4 . | . . . . Level 5 . | . . . . High Security . | . . . . Max Security . | . . . . Squads Dispatched . | . . . . Investigation . | . . . . Extermination . | . . . . Reinforcement . | . . . . Assault . | . . . . Garrison . | . . . . Intercept . | . . . . Searches Triggered . | . . . . Construction Impeded . | . . . . Haulers Reinforced . | . . . . Active Scanning Responses . | . . . . Cargo Convoy Interrupts . | . . . . Stealth | -11 -10 -10 -9 --------- Run | Yrd Mat Min Mat Distress Signals 3 | . . . 3 Communications Jammed . | . . . . Distress Signals . | . . . . Times Spotted 52 | . 14 5 33 Peak Tracking Total 5 | . 3 3 5 Tactical Retreats 4 | . 1 . 3 Traps | -11 -10 -10 -9 ------- Run | Yrd Mat Min Mat Traps Triggered 2 | . 1 . 1 Indirectly . | . . . . Trap Hack Attempts . | . . . . Triggered . | . . . . Disarmed . | . . . . Reprogrammed . | . . . . Reused . | . . . . Traps Extracted . | . . . . Installed . | . . . . Triggered . | . . . . Machines | -11 -10 -10 -9 ---------- Run | Yrd Mat Min Mat Machines Disabled 1 | . . . 1 Max in Single Turn 1 | . . . 1 Machines Repaired . | . . . . Machines Dismantled . | . . . . Machines Sabotaged . | . . . . Overloaded Fab Kills . | . . . . Hacking | -11 -10 -10 -9 --------- Run | Yrd Mat Min Mat Machines Accessed 8 | . 2 . 6 Terminals 8 | . 2 . 6 Fabricators . | . . . . Repair Stations . | . . . . Recycling Units . | . . . . Scanalyzers . | . . . . Garrison Access . | . . . . Total Hacks 25 | . 7 . 18 Successful 11 | . 2 . 9 Failed 14 | . 5 . 9 Catastrophic 2 | . . . 2 Database Lockouts . | . . . . Manual 4 | . 2 . 2 Terminals 25 | . 7 . 18 Fabricators . | . . . . Repair Stations . | . . . . Recycling Units . | . . . . Scanalyzers . | . . . . Garrison Access . | . . . . Terminal Hacks 11 | . 2 . 9 Record 4 | . . . 4 Prototype ID Bank 1 | . 1 . . Machine Index 1 | . 1 . . Alert Level 1 | . . . 1 Unreport Threat 2 | . . . 2 Zone Layout 2 | . . . 2 Fabricator Hacks . | . . . . Repair Station Hacks . | . . . . Recycling Unit Hacks . | . . . . Scanalyzer . | . . . . Garrison Access Hacks . | . . . . Unauthorized Hacks . | . . . . Terminals . | . . . . Fabricators . | . . . . Repair Stations . | . . . . Recycling Units . | . . . . Scanalyzers . | . . . . Garrison Access . | . . . . Data Cores Recovered . | . . . . Used . | . . . . Hacking Detections 7 | . 2 . 5 Full Trace Events 2 | . . . 2 Feedback Events . | . . . . Feedback Blocked . | . . . . Robot Schematics Acquired . | . . . . Robots Built . | . . . . Authchips . | . . . . Time . | . . . . Total Robot Build Rating . | . . . . Part Schematics Acquired . | . . . . Parts Built . | . . . . Authchips . | . . . . Time . | . . . . Total Part Build Rating . | . . . . Parts Repaired . | . . . . Time . | . . . . Parts Recycled . | . . . . Recycled Matter . | . . . . Retrieved Matter . | . . . . Retrieved Components . | . . . . Parts Scanalyzed . | . . . . Part Schematics Acquired . | . . . . Parts Damaged . | . . . . Bothacking | -11 -10 -10 -9 ------------ Run | Yrd Mat Min Mat Used RIF Installer . | . . . . Robots Hacked . | . . . . Non-combat . | . . . . Combat . | . . . . Robot Hacks Applied . | . . . . Relay Couplers Released . | . . . . Fabnet Peak Effective % . | . . . . Robots Rewired . | . . . . Allies Hacked . | . . . . Hacks Repelled . | . . . . Allies | -11 -10 -10 -9 -------- Run | Yrd Mat Min Mat Total Allies . | . . . . Largest Group . | . . . . Highest-Rated Group . | . . . . Highest-Rated Ally . | . . . . Total Orders . | . . . . Ally Attacks . | . . . . Total Damage . | . . . . Kills . | . . . . Allies Corrupted . | . . . . Allies Melted . | . . . . Intel | -11 -10 -10 -9 ------- Run | Yrd Mat Min Mat Robot Analysis Total . | . . . . Derelict Logs Recovered 2 | . . 2 . Drone Launches . | . . . . Drone Recoveries . | . . . . Exploration | -11 -10 -10 -9 ------------- Run | Yrd Mat Min Mat Turns Passed 2196 | 48 611 647 890 Spaces Moved 1637 | 40 420 604 573 Core 1 | 1 . . . Treads . | . . . . Legs . | . . . . Wheels 1636 | 39 420 604 573 Hover . | . . . . Flight . | . . . . Fastest Speed 50 | 50 100 100 100 Average Speed 103 | 98 100 100 110 Slowest Speed 115 | 100 100 100 115 Overloaded Moves . | . . . . Propulsion Burnouts . | . . . . Robots Hopped . | . . . . Cave-ins Triggered . | . . . . Exploration Rate (%) 55 | 4 80 96 42 Regions Visited 3 Branch Regions 1 Pre-discovered Areas . | . . . . Known Exits Taken . | . . . . Unknown Exits Taken 3 | 1 1 1 . Scrap Searched 1 | . . 1 . Spaces Dug . | . . . . Terrain Destroyed 13 | . . . 13 Melee . | . . . . Projectile 1 | . . . 1 AOE 12 | . . . 12 Terrain Rammed . | . . . . Walls Destroyed . | . . . . Machines Disabled . | . . . . Actions | -11 -10 -10 -9 --------- Run | Yrd Mat Min Mat Total 1959 | 45 535 632 747 Wait 152 | . 63 19 70 Move 1634 | 39 419 603 573 Hop . | . . . . Pick Up 19 | . 3 1 15 Fast Attach 16 | 6 1 . 9 Attach 3 | . . . 3 Detach 4 | . . . 4 Swap 9 | . 3 . 6 Drop 16 | . . . 16 Fire 106 | . 46 9 51 Melee . | . . . . Ram . | . . . . Kick . | . . . . Crush . | . . . . Escape Stasis . | . . . . Rewire . | . . . . Trap . | . . . . Miscellaneous . | . . . . Route ------- -11/Scrapyard -10/Materials (discovered 3 exits: *Mat / [*Min x2]) -10/Mines (discovered 2 exits: *Mat x2) -9/Materials (discovered 2 exits: *Mat x2) History --------- Turn | Location | Event 29 | -11/Scrapyard | Discovered new exit (range 16) 49 | -11/Scrapyard | Entered Materials 302 | -10/Materials | Build established: Mutant 410 | -10/Materials | Discovered new exit (range 15) 523 | -10/Materials | Discovered new exit (range 14) 587 | -10/Materials | Discovered new exit (range 13) 660 | -10/Materials | Entered Mines 677 | -10/Mines | Learned 2 Materials zone layouts 813 | -10/Mines | Received a Rocket Launcher from a helpful Derelict 857 | -10/Mines | Discovered new exit (range 8) 917 | -10/Mines | Learned 4 Materials zone layouts 1074 | -10/Mines | Discovered new exit (range 8) 1307 | -10/Mines | Entered Materials 1307 | -9/Materials | Evolved 2 slots: Power x1, Utility x1 1308 | -9/Materials | Identified exit to Materials 1934 | -9/Materials | Discovered exit to Materials (range 16) 2197 | -9/Materials | Self-destructed Last Messages --------------- 02034_ U-05 Engineer builds a Door. 02042_ Acquired 32 matter. 02046_ U-05 Engineer builds a Door. 02058_ U-05 Engineer lays Concrete. 02074_ R-06 Scavenger collects Lgt. Treads. 02081_ R-06 Scavenger collects Lgt. Ion Engine. 02087_ R-06 Scavenger collects Flight Unit. 02092_ R-06 Scavenger collects Lgt. Ion Engine. 02099_ W-16 Scout destroyed. 02148_ G-34 Mercenary destroyed. 02151_ G-34 Mercenary suffers critical hit (Destroy). 02151_ G-34 Mercenary destroyed. 02153_ R-06 Scavenger collects Ion Engine. 02160_ Connecting with Terminal... >>Alert(Purge) Purged threat record, alert level lowered. 02187_ Connecting with Terminal... >>Alert(Purge) Purged threat record, alert level lowered. Map ----- +----------------------------------------------------+ | | | | | | | | | | | | | | | | | | | | | ???????????????????????##????############ | | ?????????########??????# ???? | | ?????????## ##??????# ???? | | ###??????# #??????# ????? | | # ######## #??????# ????? | | # ## ###????# ??????" """ " | | # ## ###### ??????" """ Y | | # + + ????""" """ " | | # ## ###### | | # """ ## ###################+####/## | | # """"" ## ## | | # """"" # ## | | # """"" # ## T | | # """ + ## | | # # ## | | # """ # ##@ #####+#### | | # """"" # ## #???" ??# | | # """"" # """"" #???" ?# | | # """"" # """"" #???" ## | | # """ # """"" #??? ## | | # # +???"" ## | | # # #???""" ##+## | | ######### #????"" # | | ??????######+### =**#?????? #! | | ??????# # ***#???????# "" | | ???????????????# ***# #! "" | | ???????????????# # # "" | | ?????## """ # ######### | | ??????# # #????######## | | ??????# " # #????# ###### | | ??????# T # ###### | | ??????# " # + [/[ | | ??????# # ###### [/ | | ??????########## #????# [[ | | ???????????????#### #????######## | | ??????????????????# #????# | | ????????????????? # ##???# | | ?????????????????? #???# | | ??????????????????#### #???# | | ????????????########?# #???# | +----------------------------------------------------+ Best States ------------- Heat Dissipation 28 Energy Generation 19 Energy Capacity 305 Matter Stores 300 Matter Capacity 300 Sight Range 16 Terrain Scan Density 10 ECM Strength 1 Armor Coverage 600 Resistance: KI 20 Resistance: TH 20 Resistance: EX 20 Resistance: EM 35 Resistance: I 20 Resistance: S 20 Resistance: P 20 Evasion (%) 40 Offensive Hacking 10 Item Schematics ----------------- None Robot Schematics ------------------ None Fabricated ------------ Nothing Alien Tech Used ----------------- None Achievements -------------- None Challenges ------------ None Game ------ Seed HeartPiercingClaws Manual? 0 Play Time 00:26:06 Cumulative 51.3 hours Start 2024.05.08 @ 09:17:21 End 2024.05.08 @ 11:55:28 Sessions 1 Manual Loads 0 Difficulty Adventurer Special Mode None Game No. 35 Rogue 0 Adventurer 35 Explorer 0 Win Type - Total 1 Types 1/0/0/0/0/0/0/0/0 Lore% 26 Gallery% 37 Achievement% 46 Wizard Run 0 Options --------- Layout 2 ASCII 0 Keyboard 0 Movement Numpad Keybinds 0 Fullscreen 2 Font 24/Smallcaps Map View 50x44 Zoom Use 0% Tactical HUD 1 Map Filters NONE Filters NONE Steam 1 RUN: 005e962d-9dd1-4f88-a9e7-5eac8b877358